[Event "DVM U12W 2021"]
[Site "Willingen"]
[Date "2022.08.13"]
[Round "2"]
[White "Mersmann, Jasmin"]
[Black "Abram, Kristina-Maria"]
[Result "1/2-1/2"]
[ECO "B01"]
[WhiteElo "1232"]
[BlackElo "1128"]
[Annotator "NA RC COMBH"]
[PlyCount "80"]
[EventDate "2022.08.12"]
[EventType "team-tourn"]
[EventRounds "7"]
[EventCountry "GER"]
[SourceTitle "playchess.com"]
[Source "ChessBase"]
[SourceQuality "1"]
[TimeControl "40/5400+30:1800+30"]

1. e4 {[%emt 0:00:06]} d5 {[%emt 0:00:06]} 2. exd5 {[%emt 0:00:03]} Qxd5 {[%emt 0:00:06]} 3. Nc3 {[%emt 0:00:04]} Qa5 {[%emt 0:00:10]} 4. d4 {[%emt 0:00:09]} c6 {[%emt 0:00:11]} 5. Nf3 {[%emt 0:00:17]} Bf5 {[%emt 0:00:14]} 6. Bf4 {[%emt 0:00:32]} Nf6 {[%emt 0:01:05]} 7. Bc4 {[%emt 0:00:30]} Ne4 {[%emt 0:02:55]} 8. O-O {[%emt 0:02:31]} Nxc3 {[%emt 0:00:27]} 9. bxc3 {[%emt 0:00:30]} Qxc3 {[%emt 0:00:09]} 10. Ne5 {[%emt 0:02:26]} e6 {[%emt 0:01:22]} 11. Bb3 {[%emt 0:01:16]} Bd6 {[%emt 0:06:11]} 12. Rb1 {[%emt 0:01:49]} f6 {[%emt 0:01:04]} 13. Nd3 {[%emt 0:01:07]} Qxd4 {[%emt 0:01:32]} 14. Be3 {[%emt 0:01:18]} Qh4 {[%emt 0:01:06]} 15. h3 {[%emt 0:01:07]} Nd7 {[%emt 0:08:05]} 16. Re1 {[%emt 0:00:46]} O-O {[%emt 0:01:28]} 17. Nb2 {[%emt 0:04:25]} Qb4 {[%emt 0:04:08]} 18. Nc4 {[%emt 0:01:14]} Bxc2 {[%emt 0:08:07]} 19. Bxc2 {[%emt 0:00:28]} Qxc4 {[%emt 0:00:07]} 20. Qxd6 {[%emt 0:01:51]} Qxc2 {[%emt 0:01:53]} 21. Qxd7 {[%emt 0:00:26]} Qxa2 {[%emt 0:00:12]} 22. Qxb7 {[%emt 0:00:39]} Rfb8 {[%emt 0:00:14]} 23. Ra1 {[%emt 0:00:54]} Qxa1 {[%emt 0:00:51]} 24. Qxb8+ {[%emt 0:00:22]} Rxb8 {[%emt 0:00:09]} 25. Rxa1 {[%emt 0:00:09]} Ra8 {[%emt 0:01:24]} 26. Rxa7 {[%emt 0:01:46]} Rxa7 {[%emt 0:00:05]} 27. Bxa7 {[%emt 0:00:08]} Kf7 {[%emt 0:00:03]} 28. Kh2 {[%emt 0:00:20]} Ke7 {[%emt 0:00:06]} 29. Kg3 {[%emt 0:00:06]} Kd6 {[%emt 0:00:09]} 30. Kg4 {[%emt 0:00:25]} c5 {[%emt 0:00:09]} 31. Kf3 {[%emt 0:00:46]} c4 {[%emt 0:00:27]} 32. Ke2 {[%emt 0:00:06]} Kd5 {[%emt 0:00:30]} 33. Kd2 {[%emt 0:00:55]} e5 {[%emt 0:00:26]} 34. Be3 {[%emt 0:00:45]} f5 {[%emt 0:00:35]} 35. f4 {[%emt 0:01:54]} exf4 {[%emt 0:01:54]} 36. Bxf4 {[%emt 0:00:06]} Ke4 {[%emt 0:00:09]} 37. g3 {[%emt 0:00:06]} h6 {[%emt 0:00:31]} 38. Kc3 {[%emt 0:00:38]} g5 {[%emt 0:00:06]} 39. Bd2 {[%emt 0:00:39]} Kf3 {[%emt 0:00:37]} 40. h4 {[%emt 0:01:54]} Kxg3 {[%emt 0:00:24]} 1/2-1/2

[Event "DVM U12W 2021"]
[Site "Willingen"]
[Date "2022.08.13"]
[Round "2"]
[White "Hefele, Stefanie"]
[Black "Berger, Jennifer"]
[Result "1/2-1/2"]
[ECO "B00"]
[WhiteElo "1180"]
[BlackElo "1050"]
[Annotator "NA RC COMBH"]
[PlyCount "78"]
[EventDate "2022.08.12"]
[EventType "team-tourn"]
[EventRounds "7"]
[EventCountry "GER"]
[SourceTitle "playchess.com"]
[Source "ChessBase"]
[SourceQuality "1"]
[TimeControl "40/5400+30:1800+30"]

1. e4 {[%emt 0:00:13]} Nc6 {[%emt 0:00:00]} 2. d4 {[%emt 0:00:16]} d5 {[%emt 0:01:38]} 3. e5 {[%emt 0:03:44]} Bf5 {[%emt 0:01:28]} 4. Nf3 {[%emt 0:02:20]} e6 {[%emt 0:01:57]} 5. Bb5 {[%emt 0:01:27]} a6 {[%emt 0:00:17]} 6. Bd3 {[%emt 0:00:33]} Bg4 {[%emt 0:01:07]} 7. Be2 {[%emt 0:00:27]} Nh6 {[%emt 0:01:10]} 8. h3 {[%emt 0:00:24]} Bh5 {[%emt 0:01:08]} 9. O-O {[%emt 0:00:17]} Nf5 {[%emt 0:00:40]} 10. g4 {[%emt 0:03:10]} Bxg4 {[%emt 0:00:12]} 11. hxg4 {[%emt 0:00:15]} Nh6 {[%emt 0:01:18]} 12. g5 {[%emt 0:02:30]} Nf5 {[%emt 0:01:21]} 13. Nc3 {[%emt 0:01:09]} h6 {[%emt 0:02:22]} 14. Bf4 {[%emt 0:00:59]} hxg5 {[%emt 0:00:23]} 15. Bxg5 {[%emt 0:00:18]} f6 {[%emt 0:00:34]} 16. exf6 {[%emt 0:04:43]} gxf6 {[%emt 0:00:19]} 17. Bf4 {[%emt 0:00:13]} Bd6 {[%emt 0:01:12]} 18. Bxd6 {[%emt 0:00:08]} Qxd6 {[%emt 0:01:49]} 19. Kg2 {[%emt 0:03:22]} O-O-O {[%emt 0:06:04]} 20. Rg1 {[%emt 0:03:28]} Rdg8+ {[%emt 0:00:23]} 21. Kf1 {[%emt 0:00:46]} e5 {[%emt 0:08:05]} 22. Qd3 {[%emt 0:01:09]} e4 {[%emt 0:00:24]} 23. Nxe4 {[%emt 0:00:26]} dxe4 {[%emt 0:00:30]} 24. Qxe4 {[%emt 0:00:16]} Nfxd4 {[%emt 0:03:07]} 25. Rxg8+ {[%emt 0:00:30]} Rxg8 {[%emt 0:01:01]} 26. Rd1 {[%emt 0:01:24]} Rd8 {[%emt 0:04:05]} 27. Rd3 {[%emt 0:01:46]} Qc5 {[%emt 0:02:36]} 28. c3 {[%emt 0:01:31]} Nxf3 {[%emt 0:01:25]} 29. Qxf3 {[%emt 0:03:38]} Qg5 {[%emt 0:01:56]} 30. Rxd8+ {[%emt 0:00:41]} Kxd8 {[%emt 0:02:59]} 31. Bxa6 {[%emt 0:01:23]} Ne5 {[%emt 0:01:36]} 32. Qxb7 {[%emt 0:01:19]} Qc1+ {[%emt 0:00:42]} 33. Kg2 {[%emt 0:00:19]} Qg5+ {[%emt 0:00:32]} 34. Kf1 {[%emt 0:00:13]} Qc1+ {[%emt 0:00:22]} 35. Ke2 {[%emt 0:00:16]} Qc2+ {[%emt 0:00:23]} 36. Ke3 {[%emt 0:00:17]} Qc1+ {[%emt 0:00:42]} 37. Kd4 {[%emt 0:00:34]} Qd1+ {[%emt 0:02:27]} 38. Kc5 {[%emt 0:00:25]} Qd6+ {[%emt 0:00:22]} 39. Kb5 {[%emt 0:02:06]} Qd7+ 1/2-1/2

[Event "DVM U12W 2021"]
[Site "Willingen"]
[Date "2022.08.13"]
[Round "2"]
[White "Brandt, Clara"]
[Black "Christiansen, Jana-Marie"]
[Result "1-0"]
[ECO "A25"]
[WhiteElo "1161"]
[BlackElo "1120"]
[Annotator "NA RC COMBH"]
[PlyCount "133"]
[EventDate "2022.08.12"]
[EventType "team-tourn"]
[EventRounds "7"]
[EventCountry "GER"]
[SourceTitle "playchess.com"]
[Source "ChessBase"]
[SourceQuality "1"]
[TimeControl "40/5400+30:1800+30"]

1. c4 {[%emt 0:00:04]} e5 {[%emt 0:00:00]} 2. Nc3 {[%emt 0:00:08]} Nf6 {[%emt 0:00:00]} 3. g3 {[%emt 0:00:21]} Bc5 {[%emt 0:00:17]} 4. e3 {[%emt 0:00:25]} Nc6 {[%emt 0:00:38]} 5. Bg2 {[%emt 0:01:22]} d6 {[%emt 0:00:33]} 6. Nge2 {[%emt 0:01:18]} Be6 {[%emt 0:00:45]} 7. d4 {[%emt 0:14:04]} exd4 {[%emt 0:01:06]} 8. exd4 {[%emt 0:01:04]} Bxc4 {[%emt 0:00:47]} 9. dxc5 {[%emt 0:00:07]} dxc5 {[%emt 0:03:41]} 10. Qxd8+ {[%emt 0:00:06]} Rxd8 {[%emt 0:02:07]} 11. Be3 {[%emt 0:04:53]} Nb4 {[%emt 0:05:14]} 12. O-O {[%emt 0:02:05]} b6 {[%emt 0:02:23]} 13. a3 {[%emt 0:00:59]} Nc2 {[%emt 0:02:36]} 14. Rac1 {[%emt 0:00:26]} Nxe3 {[%emt 0:00:42]} 15. fxe3 {[%emt 0:00:46]} Rd2 {[%emt 0:05:40]} 16. Bc6+ {[%emt 0:01:03]} Ke7 {[%emt 0:04:47]} 17. Rfe1 {[%emt 0:01:10]} Rxb2 {[%emt 0:04:43]} 18. Nf4 {[%emt 0:05:29]} Rd8 {[%emt 0:02:02]} 19. Rcd1 {[%emt 0:02:45]} Rdd2 {[%emt 0:02:41]} 20. Rxd2 {[%emt 0:00:11]} Rxd2 {[%emt 0:05:36]} 21. Rc1 {[%emt 0:03:57]} Ng4 {[%emt 0:07:18]} 22. Ne4 {[%emt 0:01:34]} Nxe3 {[%emt 0:01:21]} 23. Nxd2 {[%emt 0:03:15]} Be6 {[%emt 0:01:14]} 24. Nxe6 {[%emt 0:00:11]} fxe6 {[%emt 0:01:49]} 25. Ra1 {[%emt 0:00:54]} Nc2 {[%emt 0:00:45]} 26. Ra2 {[%emt 0:00:06]} Nd4 {[%emt 0:00:36]} 27. Be4 {[%emt 0:00:25]} Ne2+ {[%emt 0:00:29]} 28. Kf2 {[%emt 0:00:09]} Nc3 {[%emt 0:01:06]} 29. Ra1 {[%emt 0:00:26]} h6 {[%emt 0:00:36]} 30. a4 {[%emt 0:00:29]} Kd6 {[%emt 0:00:37]} 31. Ke3 {[%emt 0:01:17]} Ke5 {[%emt 0:01:28]} 32. Nc4+ {[%emt 0:00:14]} Kf6 {[%emt 0:00:30]} 33. Rf1+ {[%emt 0:00:11]} Ke7 {[%emt 0:01:32]} 34. Bg6 {[%emt 0:00:50]} Nxa4 {[%emt 0:00:38]} 35. Rf7+ {[%emt 0:00:14]} Kd8 {[%emt 0:01:02]} 36. Ne5 {[%emt 0:01:05]} Kc8 {[%emt 0:00:39]} 37. Be4 {[%emt 0:01:06]} Kd8 {[%emt 0:00:49]} 38. Nc6+ {[%emt 0:00:04]} Kc8 {[%emt 0:01:44]} 39. Rxg7 {[%emt 0:00:22]} c4 {[%emt 0:00:37]} 40. Kd2 {[%emt 0:00:12]} c3+ {[%emt 0:00:23]} 41. Kc2 {[%emt 0:30:20]} a6 {[%emt 0:31:55]} 42. Rh7 {[%emt 0:00:17]} b5 {[%emt 0:02:07]} 43. h4 {[%emt 0:00:51]} Kb7 {[%emt 0:00:42]} 44. Rxh6 {[%emt 0:00:18]} Kb6 {[%emt 0:01:51]} 45. g4 {[%emt 0:00:10]} a5 {[%emt 0:01:52]} 46. g5 {[%emt 0:00:10]} b4 {[%emt 0:01:50]} 47. g6 {[%emt 0:00:06]} Nc5 {[%emt 0:00:45]} 48. g7 {[%emt 0:00:10]} Nxe4 {[%emt 0:00:27]} 49. g8=Q {[%emt 0:00:12]} Kxc6 {[%emt 0:00:16]} 50. Qxe6+ {[%emt 0:00:06]} Nd6 {[%emt 0:01:01]} 51. Qc4+ {[%emt 0:00:44]} Kb6 {[%emt 0:01:02]} 52. Re6 {[%emt 0:00:46]} Kb7 {[%emt 0:00:35]} 53. Rxd6 {[%emt 0:00:06]} cxd6 {[%emt 0:00:08]} 54. Qb5+ {[%emt 0:00:17]} Kc8 {[%emt 0:00:05]} 55. Qxa5 {[%emt 0:00:07]} Kd7 {[%emt 0:00:07]} 56. Qxb4 {[%emt 0:00:11]} Ke7 {[%emt 0:00:10]} 57. Qxc3 {[%emt 0:00:10]} Kf7 {[%emt 0:00:17]} 58. Qc7+ {[%emt 0:00:08]} Kg6 {[%emt 0:00:06]} 59. Qxd6+ {[%emt 0:00:06]} Kh5 {[%emt 0:00:27]} 60. Qh2 {[%emt 0:00:28]} Kg4 {[%emt 0:00:08]} 61. h5 {[%emt 0:01:31]} Kg5 {[%emt 0:00:15]} 62. h6 {[%emt 0:00:03]} Kg6 {[%emt 0:00:08]} 63. h7 {[%emt 0:00:09]} Kg7 {[%emt 0:00:05]} 64. h8=Q+ {[%emt 0:00:24]} Kg6 {[%emt 0:00:13]} 65. Qf2 {[%emt 0:00:07]} Kg5 {[%emt 0:00:06]} 66. Qg8+ {[%emt 0:00:10]} Kh6 67. Qh2# {[%emt 2:32:35]} 1-0

[Event "DVM U12W 2021"]
[Site "Willingen"]
[Date "2022.08.13"]
[Round "2"]
[White "Kopylov, Diana"]
[Black "Goeb, Franziska"]
[Result "1/2-1/2"]
[ECO "D10"]
[WhiteElo "1108"]
[BlackElo "1285"]
[Annotator "NA RC COMBH"]
[PlyCount "49"]
[EventDate "2022.08.12"]
[EventType "team-tourn"]
[EventRounds "7"]
[EventCountry "GER"]
[SourceTitle "playchess.com"]
[Source "ChessBase"]
[SourceQuality "1"]
[TimeControl "40/5400+30:1800+30"]

1. d4 {[%emt 0:00:03]} d5 {[%emt 0:00:05]} 2. c4 {[%emt 0:00:07]} c6 {[%emt 0:00:03]} 3. cxd5 {[%emt 0:00:09]} cxd5 {[%emt 0:00:05]} 4. Nf3 {[%emt 0:00:12]} Nc6 {[%emt 0:00:45]} 5. Nc3 {[%emt 0:00:55]} Bf5 {[%emt 0:01:23]} 6. Qb3 {[%emt 0:04:10]} Nf6 {[%emt 0:07:32]} 7. Qxb7 {[%emt 0:04:22]} Rc8 {[%emt 0:02:59]} 8. Bf4 {[%emt 0:09:43]} Qd7 {[%emt 0:10:18]} 9. Qxd7+ {[%emt 0:01:52]} Bxd7 {[%emt 0:05:23]} 10. e3 {[%emt 0:04:09]} Nb4 {[%emt 0:04:36]} 11. Rc1 {[%emt 0:05:31]} Ne4 {[%emt 0:07:51]} 12. a3 {[%emt 0:06:04]} Nxc3 {[%emt 0:03:02]} 13. Rxc3 {[%emt 0:03:55]} Rxc3 {[%emt 0:02:07]} 14. bxc3 {[%emt 0:00:13]} Nc2+ {[%emt 0:00:36]} 15. Kd2 {[%emt 0:01:15]} Nxa3 {[%emt 0:01:11]} 16. Bd3 {[%emt 0:01:30]} e6 {[%emt 0:05:45]} 17. Ra1 {[%emt 0:06:24]} Be7 {[%emt 0:09:23]} 18. Ne1 {[%emt 0:04:26]} Bb5 {[%emt 0:07:58]} 19. Bxb5+ {[%emt 0:05:14]} Nxb5 {[%emt 0:00:15]} 20. Ra5 {[%emt 0:00:51]} a6 {[%emt 0:05:42]} 21. Rxa6 {[%emt 0:00:38]} O-O {[%emt 0:00:49]} 22. Nd3 {[%emt 0:01:28]} Rc8 {[%emt 0:03:23]} 23. Rb6 {[%emt 0:08:46]} Nxc3 {[%emt 0:02:42]} 24. Rb8 {[%emt 0:00:42]} Ne4+ {[%emt 0:00:35]} 25. Ke2 {[%emt 0:01:05]} 1/2-1/2

[Event "DVM U12W 2021"]
[Site "Willingen"]
[Date "2022.08.13"]
[Round "2"]
[White "Sayouf, Rafif"]
[Black "Grey, Paula"]
[Result "1-0"]
[ECO "C50"]
[WhiteElo "1102"]
[BlackElo "854"]
[Annotator "NA RC COMBH"]
[PlyCount "47"]
[EventDate "2022.08.12"]
[EventType "team-tourn"]
[EventRounds "7"]
[EventCountry "GER"]
[SourceTitle "playchess.com"]
[Source "ChessBase"]
[SourceQuality "1"]
[TimeControl "40/5400+30:1800+30"]

1. e4 {[%emt 0:00:04]} e5 {[%emt 0:00:00]} 2. Nf3 {[%emt 0:00:11]} Nc6 {[%emt 0:00:01]} 3. Bc4 Bc5 {[%emt 0:00:59]} 4. Nc3 {[%emt 0:01:23]} Nf6 {[%emt 0:00:00]} 5. d3 {[%emt 0:00:31]} O-O {[%emt 0:00:00]} 6. Bg5 {[%emt 0:00:27]} d6 {[%emt 0:00:01]} 7. Nd5 {[%emt 0:03:09]} Bg4 {[%emt 0:00:13]} 8. h3 {[%emt 0:00:54]} Bd7 {[%emt 0:00:10]} 9. Nxf6+ {[%emt 0:00:30]} gxf6 {[%emt 0:00:04]} 10. Bh4 {[%emt 0:01:14]} Nd4 {[%emt 0:00:52]} 11. O-O {[%emt 0:01:46]} Kh8 {[%emt 0:00:06]} 12. c3 {[%emt 0:01:24]} Nc6 {[%emt 0:01:10]} 13. d4 {[%emt 0:00:52]} exd4 {[%emt 0:00:14]} 14. Nxd4 {[%emt 0:00:16]} Nxd4 {[%emt 0:00:08]} 15. cxd4 {[%emt 0:01:02]} Bb6 {[%emt 0:00:51]} 16. e5 {[%emt 0:01:12]} Kg8 {[%emt 0:00:43]} 17. Bxf6 {[%emt 0:00:32]} Qe8 {[%emt 0:00:47]} 18. exd6 {[%emt 0:00:34]} cxd6 {[%emt 0:00:24]} 19. Re1 {[%emt 0:00:47]} Qb8 {[%emt 0:00:22]} 20. Qf3 {[%emt 0:01:17]} d5 {[%emt 0:00:07]} 21. Be5 {[%emt 0:01:22]} Qd8 {[%emt 0:00:30]} 22. Qg3+ {[%emt 0:01:21]} Bg4 {[%emt 0:00:03]} 23. Qxg4+ {[%emt 0:00:41]} Qg5 24. Qxg5# {[%emt 0:27:28]} 1-0

[Event "DVM U12W 2021"]
[Site "Willingen"]
[Date "2022.08.13"]
[Round "2"]
[White "Kremling, Alamea"]
[Black "Limmer, Maria"]
[Result "1-0"]
[ECO "A48"]
[WhiteElo "1077"]
[BlackElo "767"]
[Annotator "NA RC COMBH"]
[PlyCount "51"]
[EventDate "2022.08.12"]
[EventType "team-tourn"]
[EventRounds "7"]
[EventCountry "GER"]
[SourceTitle "playchess.com"]
[Source "ChessBase"]
[SourceQuality "1"]
[TimeControl "40/5400+30:1800+30"]

1. d4 {[%emt 0:00:23]} g6 {[%emt 0:00:00]} 2. Bf4 {[%emt 0:00:31]} Nf6 {[%emt 0:00:18]} 3. e3 {[%emt 0:00:20]} Bg7 {[%emt 0:00:12]} 4. Nf3 {[%emt 0:00:15]} O-O {[%emt 0:00:18]} 5. Bd3 {[%emt 0:00:27]} d6 {[%emt 0:00:43]} 6. Nbd2 {[%emt 0:00:52]} Nc6 {[%emt 0:00:24]} 7. O-O {[%emt 0:00:15]} Be6 {[%emt 0:00:34]} 8. a3 {[%emt 0:01:49]} Bg4 {[%emt 0:00:34]} 9. h3 {[%emt 0:00:37]} Bxf3 {[%emt 0:00:35]} 10. Nxf3 {[%emt 0:00:10]} Nd5 {[%emt 0:01:21]} 11. Bg3 {[%emt 0:01:13]} Bf6 {[%emt 0:01:21]} 12. c4 {[%emt 0:00:48]} Bg5 {[%emt 0:01:15]} 13. Nxg5 {[%emt 0:00:23]} e6 {[%emt 0:00:40]} 14. cxd5 {[%emt 0:00:11]} Ne7 {[%emt 0:01:02]} 15. dxe6 {[%emt 0:00:17]} fxe6 {[%emt 0:00:47]} 16. Nxe6 {[%emt 0:00:03]} Qe8 {[%emt 0:00:45]} 17. Nxf8 {[%emt 0:00:41]} Qxf8 {[%emt 0:00:17]} 18. f4 {[%emt 0:00:41]} Re8 {[%emt 0:01:32]} 19. Qg4 {[%emt 0:00:50]} Nd5 {[%emt 0:01:04]} 20. Bc4 {[%emt 0:00:56]} Kh8 {[%emt 0:00:45]} 21. Bxd5 {[%emt 0:00:20]} Rxe3 {[%emt 0:00:39]} 22. f5 {[%emt 0:00:35]} Qg8 {[%emt 0:00:31]} 23. Bxg8 {[%emt 0:00:51]} Kxg8 {[%emt 0:00:20]} 24. fxg6 {[%emt 0:00:13]} hxg6 {[%emt 0:00:13]} 25. Qxg6+ {[%emt 0:00:14]} Kh8 {[%emt 0:00:54]} 26. Rf8# {[%emt 0:00:02]} 1-0

[Event "DVM U12W 2021"]
[Site "Willingen"]
[Date "2022.08.13"]
[Round "2"]
[White "Fomenkova, Elina"]
[Black "Xiao, Karoline"]
[Result "1/2-1/2"]
[ECO "B10"]
[WhiteElo "1049"]
[BlackElo "965"]
[Annotator "NA RC COMBH"]
[PlyCount "54"]
[EventDate "2022.08.12"]
[EventType "team-tourn"]
[EventRounds "7"]
[EventCountry "GER"]
[SourceTitle "playchess.com"]
[Source "ChessBase"]
[SourceQuality "1"]
[TimeControl "40/5400+30:1800+30"]

1. e4 {[%emt 0:00:07]} c6 {[%emt 0:00:00]} 2. Nf3 {[%emt 0:00:12]} d5 {[%emt 0:00:27]} 3. d3 {[%emt 0:00:21]} Bg4 {[%emt 0:00:16]} 4. Be2 {[%emt 0:00:39]} e6 {[%emt 0:00:30]} 5. Nc3 {[%emt 0:00:22]} Bd6 {[%emt 0:00:47]} 6. Bd2 {[%emt 0:00:21]} Nd7 {[%emt 0:00:28]} 7. e5 {[%emt 0:00:42]} Bc7 {[%emt 0:01:24]} 8. O-O {[%emt 0:01:05]} Bxf3 {[%emt 0:00:16]} 9. Bxf3 {[%emt 0:00:51]} Nxe5 {[%emt 0:00:24]} 10. d4 {[%emt 0:00:18]} Ng6 {[%emt 0:00:30]} 11. g3 {[%emt 0:00:27]} Nf6 {[%emt 0:00:12]} 12. Bg5 {[%emt 0:00:47]} O-O {[%emt 0:02:31]} 13. Bxf6 {[%emt 0:00:51]} Qxf6 {[%emt 0:00:47]} 14. Qd3 {[%emt 0:08:02]} Rae8 {[%emt 0:01:22]} 15. Rae1 {[%emt 0:08:02]} b6 {[%emt 0:00:54]} 16. Bg4 {[%emt 0:06:40]} c5 {[%emt 0:00:53]} 17. Nb5 {[%emt 0:03:50]} Bb8 {[%emt 0:00:50]} 18. f4 {[%emt 0:03:22]} a6 {[%emt 0:01:58]} 19. f5 {[%emt 0:03:10]} exf5 {[%emt 0:00:46]} 20. Nc3 {[%emt 0:03:27]} Qc6 {[%emt 0:00:47]} 21. Qxf5 {[%emt 0:04:53]} cxd4 {[%emt 0:00:52]} 22. Qxd5 {[%emt 0:01:25]} Qxd5 {[%emt 0:00:07]} 23. Nxd5 {[%emt 0:01:40]} b5 {[%emt 0:00:56]} 24. Nb6 {[%emt 0:02:02]} Rd8 {[%emt 0:02:23]} 25. Bf5 {[%emt 0:00:39]} d3 {[%emt 0:01:47]} 26. cxd3 {[%emt 0:00:20]} Ba7 {[%emt 0:04:13]} 27. Kh1 {[%emt 0:00:15]} Bxb6 {[%emt 0:01:37]} 1/2-1/2

[Event "DVM U12W 2021"]
[Site "Willingen"]
[Date "2022.08.13"]
[Round "2"]
[White "Shynkar, Darya"]
[Black "Glotz, Diana"]
[Result "1-0"]
[ECO "D35"]
[WhiteElo "1001"]
[BlackElo "1116"]
[Annotator "NA RC COMBH"]
[PlyCount "93"]
[EventDate "2022.08.12"]
[EventType "team-tourn"]
[EventRounds "7"]
[EventCountry "GER"]
[SourceTitle "playchess.com"]
[Source "ChessBase"]
[SourceQuality "1"]
[TimeControl "40/5400+30:1800+30"]

1. d4 {[%emt 0:00:08]} d5 {[%emt 0:00:00]} 2. c4 {[%emt 0:00:06]} e6 {[%emt 0:00:00]} 3. Nc3 {[%emt 0:00:07]} Nf6 {[%emt 0:00:00]} 4. cxd5 {[%emt 0:00:08]} exd5 {[%emt 0:00:00]} 5. Bg5 {[%emt 0:00:23]} Nbd7 {[%emt 0:00:19]} 6. e3 {[%emt 0:00:14]} c6 {[%emt 0:00:13]} 7. Bd3 {[%emt 0:01:51]} Qa5 {[%emt 0:01:51]} 8. a3 {[%emt 0:06:43]} Ne4 {[%emt 0:01:02]} 9. Bxe4 {[%emt 0:00:12]} dxe4 {[%emt 0:00:40]} 10. Bf4 {[%emt 0:04:18]} Nf6 {[%emt 0:01:04]} 11. h3 {[%emt 0:07:46]} Be6 {[%emt 0:07:04]} 12. Nge2 {[%emt 0:15:08]} Nd5 {[%emt 0:07:26]} 13. b4 {[%emt 0:05:19]} Nxc3 {[%emt 0:00:40]} 14. Nxc3 {[%emt 0:01:19]} Qf5 {[%emt 0:04:14]} 15. Qc2 {[%emt 0:07:41]} Bd5 {[%emt 0:01:25]} 16. f3 {[%emt 0:06:15]} Qg6 {[%emt 0:00:24]} 17. fxe4 {[%emt 0:04:42]} Be7 {[%emt 0:00:33]} 18. Nxd5 {[%emt 0:00:18]} cxd5 {[%emt 0:00:12]} 19. Qa4+ {[%emt 0:05:00]} Kf8 {[%emt 0:01:06]} 20. O-O {[%emt 0:06:47]} dxe4 {[%emt 0:01:24]} 21. Rf2 {[%emt 0:03:10]} Qe6 {[%emt 0:02:01]} 22. Raf1 {[%emt 0:04:06]} Bh4 {[%emt 0:01:43]} 23. Rc2 {[%emt 0:02:58]} b6 {[%emt 0:00:40]} 24. Rc7 {[%emt 0:00:36]} Qe8 {[%emt 0:00:25]} 25. Bd6+ {[%emt 0:02:42]} Kg8 {[%emt 0:00:14]} 26. Qxe8+ {[%emt 0:00:13]} Rxe8 {[%emt 0:00:41]} 27. Rfxf7 {[%emt 0:01:03]} Bf6 {[%emt 0:01:30]} 28. Rxa7 {[%emt 0:03:38]} h6 {[%emt 0:03:24]} 29. Rfb7 {[%emt 0:01:58]} Kh7 {[%emt 0:00:39]} 30. Rxb6 {[%emt 0:00:35]} Rc8 {[%emt 0:00:14]} 31. Bc5 {[%emt 0:00:45]} Ra8 {[%emt 0:01:36]} 32. Rd7 {[%emt 0:00:54]} Kg6 {[%emt 0:01:02]} 33. b5 {[%emt 0:01:25]} Rab8 {[%emt 0:00:19]} 34. Rxb8 {[%emt 0:00:06]} Rxb8 {[%emt 0:01:20]} 35. a4 {[%emt 0:01:11]} Bg5 {[%emt 0:00:21]} 36. Kf2 {[%emt 0:00:42]} Kf6 {[%emt 0:00:24]} 37. b6 {[%emt 0:01:04]} g6 {[%emt 0:00:41]} 38. b7 {[%emt 0:00:36]} Ke6 {[%emt 0:00:44]} 39. Rh7 {[%emt 0:01:52]} Kd5 {[%emt 0:00:18]} 40. Ba7 {[%emt 0:00:11]} Rf8+ {[%emt 0:00:56]} 41. Ke2 {[%emt 0:30:21]} Bh4 {[%emt 0:30:18]} 42. b8=Q {[%emt 0:00:17]} Rf2+ {[%emt 0:00:19]} 43. Kd1 {[%emt 0:01:08]} Rf1+ {[%emt 0:00:19]} 44. Kc2 {[%emt 0:00:30]} Rf2+ {[%emt 0:00:20]} 45. Kb3 {[%emt 0:00:49]} Rf6 {[%emt 0:00:23]} 46. Qe5+ {[%emt 0:01:26]} Kc6 {[%emt 0:00:14]} 47. Rc7# 1-0

[Event "DVM U12W 2021"]
[Site "Willingen"]
[Date "2022.08.13"]
[Round "2"]
[White "Cao, Weiqi"]
[Black "Müller, Ariana"]
[Result "1-0"]
[ECO "E01"]
[WhiteElo "969"]
[BlackElo "975"]
[Annotator "NA RC COMBH"]
[PlyCount "111"]
[EventDate "2022.08.12"]
[EventType "team-tourn"]
[EventRounds "7"]
[EventCountry "GER"]
[SourceTitle "playchess.com"]
[Source "ChessBase"]
[SourceQuality "1"]
[TimeControl "40/5400+30:1800+30"]

1. d4 {[%emt 0:00:07]} d5 {[%emt 0:00:00]} 2. Nf3 {[%emt 0:00:08]} Nf6 {[%emt 0:00:00]} 3. g3 {[%emt 0:00:10]} e6 {[%emt 0:00:00]} 4. Bg2 {[%emt 0:00:19]} c5 {[%emt 0:00:00]} 5. O-O {[%emt 0:00:07]} Nc6 {[%emt 0:00:25]} 6. c4 {[%emt 0:01:26]} Bd7 {[%emt 0:00:29]} 7. b3 {[%emt 0:02:00]} Be7 {[%emt 0:00:24]} 8. Nc3 {[%emt 0:01:28]} O-O {[%emt 0:01:27]} 9. Bb2 {[%emt 0:11:54]} Qc7 {[%emt 0:05:26]} 10. Na4 {[%emt 0:04:12]} b6 {[%emt 0:03:11]} 11. Re1 {[%emt 0:01:33]} Bd6 {[%emt 0:01:19]} 12. Ba3 {[%emt 0:01:10]} Ne4 {[%emt 0:05:37]} 13. e3 {[%emt 0:08:12]} cxd4 {[%emt 0:02:07]} 14. Bxd6 {[%emt 0:01:25]} Nxd6 {[%emt 0:03:42]} 15. cxd5 {[%emt 0:03:35]} exd5 {[%emt 0:00:36]} 16. exd4 {[%emt 0:05:52]} Bf5 {[%emt 0:00:46]} 17. Ne5 Nb4 {[%emt 0:00:14]} 18. a3 {[%emt 0:01:00]} Nc2 {[%emt 0:00:30]} 19. Rc1 {[%emt 0:00:30]} Rac8 {[%emt 0:00:30]} 20. Bxd5 {[%emt 0:00:30]} Qd8 {[%emt 0:00:30]} 21. Re2 {[%emt 0:00:30]} Nxd4 {[%emt 0:00:30]} 22. Rxc8 {[%emt 0:00:30]} Nxe2+ {[%emt 0:00:30]} 23. Qxe2 {[%emt 0:00:30]} Qxc8 {[%emt 0:19:14]} 24. Nc4 {[%emt 0:14:57]} Nxc4 {[%emt 0:00:30]} 25. Bxc4 {[%emt 0:01:20]} Bh3 {[%emt 0:01:53]} 26. Nc3 {[%emt 0:03:11]} Qc6 {[%emt 0:00:56]} 27. Nd5 {[%emt 0:00:00]} b5 {[%emt 0:00:00]} 28. Ne7+ {[%emt 0:00:00]} Kh8 {[%emt 0:00:00]} 29. Nxc6 {[%emt 0:00:00]} bxc4 {[%emt 0:01:46]} 30. bxc4 {[%emt 0:04:08]} Rc8 {[%emt 0:01:26]} 31. Qh5 {[%emt 0:01:15]} Bd7 {[%emt 0:01:03]} 32. Nxa7 {[%emt 0:04:33]} Rf8 {[%emt 0:01:14]} 33. Qd5 {[%emt 0:01:39]} Bh3 {[%emt 0:00:50]} 34. c5 {[%emt 0:04:37]} h6 {[%emt 0:00:47]} 35. Qh5 {[%emt 0:01:28]} Be6 {[%emt 0:00:44]} 36. Qd1 {[%emt 0:02:46]} Ra8 {[%emt 0:01:03]} 37. Qa4 {[%emt 0:02:32]} Bd5 {[%emt 0:00:00]} 38. c6 {[%emt 0:00:00]} Re8 {[%emt 0:00:00]} 39. Qa5 {[%emt 0:08:46]} Be6 {[%emt 0:04:50]} 40. c7 {[%emt 0:00:51]} Bh3 {[%emt 0:00:42]} 41. Qc3 {[%emt 0:31:20]} Bc8 {[%emt 0:30:43]} 42. Nxc8 {[%emt 0:00:21]} Rxc8 {[%emt 0:00:09]} 43. a4 {[%emt 0:00:00]} Kg8 {[%emt 0:00:00]} 44. Qc5 {[%emt 0:00:00]} f6 {[%emt 0:00:15]} 45. a5 {[%emt 0:05:22]} Kf7 {[%emt 0:00:50]} 46. Qc6 {[%emt 0:00:49]} Ke7 {[%emt 0:00:08]} 47. a6 {[%emt 0:00:40]} g5 {[%emt 0:00:16]} 48. a7 {[%emt 0:00:56]} Kf7 49. a8=Q {[%emt 0:03:44]} Rxa8 {[%emt 0:00:18]} 50. Qxa8 {[%emt 0:00:08]} Kg6 {[%emt 0:02:31]} 51. g4 {[%emt 0:00:00]} Kf7 {[%emt 0:00:11]} 52. c8=R {[%emt 0:00:00]} h5 {[%emt 0:00:25]} 53. gxh5 {[%emt 0:00:00]} f5 {[%emt 0:00:12]} 54. Rc6 {[%emt 0:00:22]} Ke7 {[%emt 0:00:10]} 55. Qb7+ {[%emt 0:00:15]} Kd8 {[%emt 0:00:13]} 56. Rc8# 1-0